[Event "*** Titled Tuesday Blitz"]
[Site "Chess.com"]
[Date "2020.02.04"]
[Round "7"]
[White "sergoy"]
[Black "DamianoLew95"]
[Result "1-0"]
[WhiteElo "2850"]
[BlackElo "2596"]
[TimeControl "180+2"]
[EndTime "10:37:32 PST"]
[Termination "sergoy won on time"]

1. e4 {[%clk 0:03:01.9]} 1... e6 {[%clk 0:02:57.8]} 2. d4 {[%clk 0:03:02.7]}
2... d5 {[%clk 0:02:59.1]} 3. Nd2 {[%clk 0:03:04.4]} 3... dxe4 {[%clk
0:02:59.9]} 4. Nxe4 {[%clk 0:03:05.8]} 4... Bd7 {[%clk 0:03:01.6]} 5. Nf3 {[%clk
0:03:06.6]} 5... Bc6 {[%clk 0:03:03]} 6. Bd3 {[%clk 0:03:08.2]} 6... Nd7 {[%clk
0:03:04.4]} 7. O-O {[%clk 0:03:09.1]} 7... Bxe4 {[%clk 0:02:57.9]} 8. Bxe4
{[%clk 0:03:10]} 8... c6 {[%clk 0:02:59.5]} 9. c3 {[%clk 0:03:11.2]} 9... Ngf6
{[%clk 0:03:00.9]} 10. Bc2 {[%clk 0:03:12.4]} 10... Bd6 {[%clk 0:03:02.2]} 11.
Qd3 {[%clk 0:03:13.2]} 11... h6 {[%clk 0:03:00.8]} 12. Re1 {[%clk 0:03:13.5]}
12... Qc7 {[%clk 0:02:59.8]} 13. h3 {[%clk 0:03:11.5]} 13... O-O {[%clk
0:02:56.2]} 14. b3 {[%clk 0:03:12.2]} 14... e5 {[%clk 0:02:52.8]} 15. dxe5
{[%clk 0:02:58.1]} 15... Nxe5 {[%clk 0:02:51]} 16. Nxe5 {[%clk 0:02:59.4]} 16...
Bxe5 {[%clk 0:02:52.9]} 17. Ba3 {[%clk 0:02:58.2]} 17... Rfe8 {[%clk 0:02:48]}
18. Rad1 {[%clk 0:02:53.9]} 18... Rad8 {[%clk 0:02:46.2]} 19. Qf3 {[%clk
0:02:46.2]} 19... Rxd1 {[%clk 0:02:39.8]} 20. Rxd1 {[%clk 0:02:45.9]} 20... Qa5
{[%clk 0:02:33.4]} 21. Bd6 {[%clk 0:02:27.6]} 21... Qxc3 {[%clk 0:01:27.3]} 22.
Qxc3 {[%clk 0:02:23.8]} 22... Bxc3 {[%clk 0:01:26.9]} 23. Bf4 {[%clk 0:02:23.5]}
23... Re1+ {[%clk 0:01:21.9]} 24. Rxe1 {[%clk 0:02:22.7]} 24... Bxe1 {[%clk
0:01:23.8]} 25. Bb8 {[%clk 0:02:23.6]} 25... a6 {[%clk 0:01:22.8]} 26. Bf5
{[%clk 0:02:24.5]} 26... b5 {[%clk 0:01:12.8]} 27. Ba7 {[%clk 0:02:20.1]} 27...
Bb4 {[%clk 0:00:50]} 28. Bc8 {[%clk 0:02:19.5]} 28... Kf8 {[%clk 0:00:45.9]} 29.
Bb7 {[%clk 0:02:18.1]} 29... Nd7 {[%clk 0:00:27.7]} 30. Be3 {[%clk 0:02:12.4]}
30... Bc5 {[%clk 0:00:22.5]} 31. Bf4 {[%clk 0:02:13]} 31... g5 {[%clk
0:00:19.6]} 32. Bc7 {[%clk 0:02:10]} 32... Ke7 {[%clk 0:00:20]} 33. Bxc6 {[%clk
0:02:01.5]} 33... Bb6 {[%clk 0:00:20.3]} 34. Bg3 {[%clk 0:02:00.7]} 34... b4
{[%clk 0:00:20.1]} 35. Kf1 {[%clk 0:01:58.7]} 35... Nf6 {[%clk 0:00:14.7]} 36.
Ke2 {[%clk 0:01:58.9]} 36... Nh5 {[%clk 0:00:13.9]} 37. Bb8 {[%clk 0:01:17.7]}
37... Nf4+ {[%clk 0:00:13.6]} 38. Kd2 {[%clk 0:01:19.1]} 38... Bxf2 {[%clk
0:00:09.3]} 39. Bb7 {[%clk 0:01:19.5]} 39... Bc5 {[%clk 0:00:08.9]} 40. h4
{[%clk 0:01:12.9]} 40... Ne6 {[%clk 0:00:02.4]} 41. hxg5 {[%clk 0:01:11.1]}
41... hxg5 {[%clk 0:00:04.1]} 42. Bxa6 {[%clk 0:01:12.1]} 42... Nf4 {[%clk
0:00:03.6]} 43. g3 {[%clk 0:01:08.8]} 43... Ne6 {[%clk 0:00:04.3]} 44. Kd3
{[%clk 0:00:50.2]} 44... f5 {[%clk 0:00:05.6]} 45. Bc8 {[%clk 0:00:46.3]} 45...
Bd6 {[%clk 0:00:03.2]} 46. Bxd6+ {[%clk 0:00:35.5]} 46... Kxd6 {[%clk
0:00:05.1]} 47. Kc4 {[%clk 0:00:37.1]} 47... f4 {[%clk 0:00:06.5]} 48. gxf4
{[%clk 0:00:37.7]} 48... gxf4 {[%clk 0:00:08.3]} 49. Bb7 {[%clk 0:00:37.5]}
49... Nd8 {[%clk 0:00:08.8]} 50. Bg2 {[%clk 0:00:33.9]} 50... Nc6 {[%clk
0:00:09.9]} 51. Kb5 {[%clk 0:00:35.1]} 51... Nd4+ {[%clk 0:00:10.3]} 52. Kxb4
{[%clk 0:00:33.1]} 52... f3 {[%clk 0:00:11.3]} 53. Bh3 {[%clk 0:00:33.7]} 53...
Nc2+ {[%clk 0:00:11.6]} 54. Kc3 {[%clk 0:00:34.2]} 54... Ne3 {[%clk 0:00:11.2]}
55. Kd4 {[%clk 0:00:30.1]} 55... Nc2+ {[%clk 0:00:07.8]} 56. Ke4 {[%clk
0:00:25.3]} 56... f2 {[%clk 0:00:06.9]} 57. Kf3 {[%clk 0:00:25.6]} 57... Kc5
{[%clk 0:00:07.7]} 58. Kxf2 {[%clk 0:00:25.6]} 58... Kb4 {[%clk 0:00:06.7]} 59.
Be6 {[%clk 0:00:22.8]} 59... Ka3 {[%clk 0:00:07.4]} 60. Bf5 {[%clk 0:00:08.2]}
60... Nb4 {[%clk 0:00:09.3]} 61. Bb1 {[%clk 0:00:08.7]} 61... Kb2 {[%clk
0:00:03.2]} 62. Ke3 {[%clk 0:00:07.8]} 1-0

[Event "*** Titled Tuesday Blitz"]
[Site "Chess.com"]
[Date "2020.02.04"]
[Round "7"]
[White "ShimanovAlex"]
[Black "Aygehovit1992"]
[Result "1-0"]
[WhiteElo "2761"]
[BlackElo "2651"]
[TimeControl "180+2"]
[EndTime "10:37:33 PST"]
[Termination "ShimanovAlex won by resignation"]

1. d4 {[%clk 0:03:01]} 1... d6 {[%clk 0:03:00]} 2. e4 {[%clk 0:02:56]} 2... g6
{[%clk 0:03:01.1]} 3. a4 {[%clk 0:02:36.8]} 3... Bg7 {[%clk 0:03:01.1]} 4. c3
{[%clk 0:02:18.8]} 4... Nf6 {[%clk 0:03:00]} 5. Nd2 {[%clk 0:02:18.5]} 5... e5
{[%clk 0:02:57.6]} 6. dxe5 {[%clk 0:02:18.7]} 6... dxe5 {[%clk 0:02:58.3]} 7.
Ngf3 {[%clk 0:02:20.3]} 7... Qe7 {[%clk 0:02:54.1]} 8. b3 {[%clk 0:02:18.1]}
8... O-O {[%clk 0:02:52.6]} 9. Ba3 {[%clk 0:02:17.7]} 9... c5 {[%clk 0:02:53.4]}
10. Bc4 {[%clk 0:02:15.5]} 10... Nc6 {[%clk 0:02:52.8]} 11. O-O {[%clk
0:02:15.7]} 11... Nh5 {[%clk 0:02:41.6]} 12. Re1 {[%clk 0:02:13.6]} 12... Nf4
{[%clk 0:02:39.1]} 13. Qc2 {[%clk 0:02:14.3]} 13... Bg4 {[%clk 0:02:13.4]} 14.
Bf1 {[%clk 0:02:10.3]} 14... Rfd8 {[%clk 0:02:03]} 15. h3 {[%clk 0:02:09.5]}
15... Be6 {[%clk 0:02:02.9]} 16. Nc4 {[%clk 0:02:11]} 16... Rac8 {[%clk
0:01:58.8]} 17. Ne3 {[%clk 0:02:06.6]} 17... Qf6 {[%clk 0:01:55]} 18. Nd2 {[%clk
0:01:59.4]} 18... h5 {[%clk 0:01:26.9]} 19. Rad1 {[%clk 0:01:43.7]} 19... Bh6
{[%clk 0:01:25]} 20. Ndc4 {[%clk 0:01:20.2]} 20... b6 {[%clk 0:01:05.7]} 21. Kh2
{[%clk 0:01:14.5]} 21... h4 {[%clk 0:00:57.5]} 22. Bc1 {[%clk 0:01:14.1]} 22...
g5 {[%clk 0:00:50.1]} 23. Ng4 {[%clk 0:00:59]} 23... Bxg4 {[%clk 0:00:50.4]} 24.
hxg4 {[%clk 0:00:59]} 24... Bf8 {[%clk 0:00:51.3]} 25. Ne3 {[%clk 0:00:55.4]}
25... Ne7 {[%clk 0:00:29.6]} 26. Bc4 {[%clk 0:00:52.6]} 26... Qc6 {[%clk
0:00:19.2]} 27. g3 {[%clk 0:00:48.9]} 27... Nfg6 {[%clk 0:00:14.4]} 28. Bd5
{[%clk 0:00:41.6]} 28... Nxd5 {[%clk 0:00:14.8]} 29. exd5 {[%clk 0:00:41.4]}
29... Qf6 {[%clk 0:00:12.8]} 30. Qf5 {[%clk 0:00:29.7]} 30... Qxf5 {[%clk
0:00:13.3]} 31. gxf5 {[%clk 0:00:30.2]} 31... hxg3+ {[%clk 0:00:14.1]} 32. fxg3
{[%clk 0:00:30.5]} 32... Ne7 {[%clk 0:00:15.4]} 33. Ng4 {[%clk 0:00:28.9]} 33...
Nxf5 {[%clk 0:00:13.7]} 34. Rxe5 {[%clk 0:00:28.8]} 34... Ne7 {[%clk 0:00:03.1]}
35. Bxg5 {[%clk 0:00:22.9]} 35... Ng6 {[%clk 0:00:04]} 36. Bxd8 {[%clk
0:00:13.1]} 36... Nxe5 {[%clk 0:00:04.3]} 37. Nxe5 {[%clk 0:00:11.5]} 37... Rxd8
{[%clk 0:00:05.4]} 38. Nc6 {[%clk 0:00:12]} 38... Rd7 {[%clk 0:00:06.7]} 39. c4
{[%clk 0:00:12.5]} 39... Bd6 {[%clk 0:00:07.7]} 40. Re1 {[%clk 0:00:13.1]} 40...
f5 {[%clk 0:00:06.7]} 41. Re6 {[%clk 0:00:10]} 41... f4 {[%clk 0:00:06.5]} 42.
gxf4 {[%clk 0:00:05.8]} 42... Bxf4+ {[%clk 0:00:08.4]} 43. Kg2 {[%clk
0:00:04.5]} 43... Bd6 {[%clk 0:00:09.7]} 44. Kf3 {[%clk 0:00:04.2]} 44... Bf8
{[%clk 0:00:09.2]} 45. Ke4 {[%clk 0:00:05.5]} 45... Rh7 {[%clk 0:00:08.3]} 46.
d6 {[%clk 0:00:05.6]} 46... Kf7 {[%clk 0:00:03.6]} 47. Nd8+ {[%clk 0:00:06]}
47... Kg8 {[%clk 0:00:04.1]} 48. Kd5 {[%clk 0:00:07.9]} 48... Rh3 {[%clk
0:00:03.2]} 49. d7 {[%clk 0:00:06.8]} 49... Rxb3 {[%clk 0:00:03.1]} 50. Kc6
{[%clk 0:00:08.2]} 50... Rd3 {[%clk 0:00:03.3]} 51. Nb7 {[%clk 0:00:09.7]} 51...
Kf7 {[%clk 0:00:04.3]} 52. d8=Q {[%clk 0:00:09.8]} 1-0

[Event "*** Titled Tuesday Blitz"]
[Site "Chess.com"]
[Date "2020.02.04"]
[Round "7"]
[White "WPWPWP-2015"]
[Black "Manukyan_Artak"]
[Result "0-1"]
[WhiteElo "2508"]
[BlackElo "2342"]
[TimeControl "180+2"]
[EndTime "10:37:38 PST"]
[Termination "Manukyan_Artak won on time"]

1. d4 {[%clk 0:03:01.9]} 1... Nf6 {[%clk 0:03:00.1]} 2. c4 {[%clk 0:02:58.9]}
2... e6 {[%clk 0:03:00.6]} 3. Nf3 {[%clk 0:02:59.2]} 3... d5 {[%clk 0:03:00.2]}
4. Nc3 {[%clk 0:02:59]} 4... a6 {[%clk 0:03:00.7]} 5. e3 {[%clk 0:02:57.4]} 5...
c5 {[%clk 0:03:01.1]} 6. cxd5 {[%clk 0:02:57.6]} 6... exd5 {[%clk 0:03:02.2]} 7.
Be2 {[%clk 0:02:57.1]} 7... Nc6 {[%clk 0:03:01.9]} 8. O-O {[%clk 0:02:58]} 8...
Bg4 {[%clk 0:02:58.5]} 9. dxc5 {[%clk 0:02:55.6]} 9... Bxc5 {[%clk 0:02:58.6]}
10. h3 {[%clk 0:02:52.3]} 10... Bh5 {[%clk 0:02:59.3]} 11. Na4 {[%clk
0:02:49.6]} 11... Ba7 {[%clk 0:02:55.9]} 12. Bd2 {[%clk 0:02:47.8]} 12... O-O
{[%clk 0:02:54.2]} 13. Rc1 {[%clk 0:02:48.3]} 13... Ne4 {[%clk 0:02:53.2]} 14.
Be1 {[%clk 0:02:36.9]} 14... Rc8 {[%clk 0:02:42.9]} 15. Nd2 {[%clk 0:02:22.8]}
15... Bxe2 {[%clk 0:02:40]} 16. Qxe2 {[%clk 0:02:22.7]} 16... f5 {[%clk
0:02:36.4]} 17. Nb3 {[%clk 0:02:11.5]} 17... f4 {[%clk 0:02:33.4]} 18. Nac5
{[%clk 0:02:04]} 18... fxe3 {[%clk 0:02:30.1]} 19. fxe3 {[%clk 0:01:56.5]} 19...
Rxf1+ {[%clk 0:02:27.2]} 20. Qxf1 {[%clk 0:01:57.2]} 20... Qg5 {[%clk 0:02:26]}
21. Nxe4 {[%clk 0:01:25.7]} 21... Bxe3+ {[%clk 0:02:12.1]} 22. Kh1 {[%clk
0:01:19.3]} 22... dxe4 {[%clk 0:02:10.9]} 23. Qc4+ {[%clk 0:01:10.1]} 23... Kh8
{[%clk 0:02:09.2]} 24. Rd1 {[%clk 0:01:11.3]} 24... Re8 {[%clk 0:02:02.5]} 25.
Rd5 {[%clk 0:01:05.3]} 25... Qf4 {[%clk 0:01:57.4]} 26. Nd2 {[%clk 0:00:47.4]}
26... h6 {[%clk 0:01:45.8]} 27. Nf1 {[%clk 0:00:44.5]} 27... Bf2 {[%clk
0:01:36.8]} 28. Bd2 {[%clk 0:00:43]} 28... Qf7 {[%clk 0:01:22.7]} 29. Ne3 {[%clk
0:00:33.1]} 29... Bxe3 {[%clk 0:01:13]} 30. Bxe3 {[%clk 0:00:32]} 30... Ne7
{[%clk 0:01:11.4]} 31. Rc5 {[%clk 0:00:18.9]} 31... Qxc4 {[%clk 0:01:09.5]} 32.
Rxc4 {[%clk 0:00:20]} 32... Nf5 {[%clk 0:01:11.4]} 33. Bf2 {[%clk 0:00:19.4]}
33... e3 {[%clk 0:01:11]} 34. Be1 {[%clk 0:00:19.8]} 34... Rd8 {[%clk 0:00:55]}
35. Rf4 {[%clk 0:00:16.6]} 35... Rd1 {[%clk 0:00:52.5]} 36. Rxf5 {[%clk
0:00:15.8]} 36... Rxe1+ {[%clk 0:00:53.5]} 37. Kh2 {[%clk 0:00:17.2]} 37... Rb1
{[%clk 0:00:53.4]} 38. Re5 {[%clk 0:00:16]} 38... Rxb2 {[%clk 0:00:54.4]} 39.
Rxe3 {[%clk 0:00:15.9]} 39... Rxa2 {[%clk 0:00:55.6]} 40. Kg3 {[%clk 0:00:16.1]}
40... b5 {[%clk 0:00:53.8]} 41. Kf3 {[%clk 0:00:13.6]} 41... b4 {[%clk
0:00:54.6]} 42. Re8+ {[%clk 0:00:13.9]} 42... Kh7 {[%clk 0:00:54.7]} 43. Rb8
{[%clk 0:00:15.5]} 43... a5 {[%clk 0:00:53.6]} 44. h4 {[%clk 0:00:17]} 44... h5
{[%clk 0:00:53]} 45. Rb5 {[%clk 0:00:16.7]} 45... g6 {[%clk 0:00:52.6]} 46. Rb7+
{[%clk 0:00:16.7]} 46... Kh6 {[%clk 0:00:53.7]} 47. g4 {[%clk 0:00:16.2]} 47...
Ra3+ {[%clk 0:00:48.2]} 48. Kf4 {[%clk 0:00:16.5]} 48... hxg4 {[%clk 0:00:49.4]}
49. Kxg4 {[%clk 0:00:16.8]} 49... b3 {[%clk 0:00:47.8]} 50. Rb6 {[%clk 0:00:18]}
50... Kg7 {[%clk 0:00:36.5]} 51. Kg5 {[%clk 0:00:18.3]} 51... Kf7 {[%clk
0:00:37.2]} 52. Rb7+ {[%clk 0:00:18.3]} 52... Ke6 {[%clk 0:00:35.6]} 53. Kxg6
{[%clk 0:00:19.7]} 53... a4 {[%clk 0:00:35.6]} 54. h5 {[%clk 0:00:21]} 54... Ra1
{[%clk 0:00:36.6]} 55. Rb4 {[%clk 0:00:19.1]} 55... Kd5 {[%clk 0:00:34]} 56. h6
{[%clk 0:00:18.8]} 56... Kc5 {[%clk 0:00:30.4]} 57. h7 {[%clk 0:00:18]} 57...
Rh1 {[%clk 0:00:31.3]} 58. Rb8 {[%clk 0:00:04]} 58... Kc4 {[%clk 0:00:29.7]} 59.
Rc8+ {[%clk 0:00:04.5]} 59... Kd3 {[%clk 0:00:30.5]} 60. Rb8 {[%clk 0:00:03.2]}
60... Kc2 {[%clk 0:00:28.8]} 61. Rc8+ {[%clk 0:00:04.1]} 61... Kb2 {[%clk
0:00:29.8]} 62. Re8 {[%clk 0:00:03.4]} 62... Ka3 {[%clk 0:00:23.4]} 63. Re3
{[%clk 0:00:03]} 63... Ka2 {[%clk 0:00:22.7]} 0-1

[Event "*** Titled Tuesday Blitz"]
[Site "Chess.com"]
[Date "2020.02.04"]
[Round "7"]
[White "wonderfultime"]
[Black "Tjktiger"]
[Result "0-1"]
[WhiteElo "2955"]
[BlackElo "2792"]
[TimeControl "180+2"]
[EndTime "10:38:01 PST"]
[Termination "Tjktiger won by resignation"]

1. d4 {[%clk 0:03:01.9]} 1... d6 {[%clk 0:03:01.3]} 2. Nf3 {[%clk 0:03:01.9]}
2... g6 {[%clk 0:03:02]} 3. g3 {[%clk 0:03:03.1]} 3... Bg7 {[%clk 0:03:02.8]} 4.
Bg2 {[%clk 0:03:04.7]} 4... Nf6 {[%clk 0:03:04.3]} 5. O-O {[%clk 0:03:06.3]}
5... O-O {[%clk 0:03:06.2]} 6. c4 {[%clk 0:03:07.9]} 6... Nc6 {[%clk 0:03:00.9]}
7. Nc3 {[%clk 0:03:09.4]} 7... e5 {[%clk 0:03:01.8]} 8. dxe5 {[%clk 0:03:07.2]}
8... Nxe5 {[%clk 0:03:02.5]} 9. Qb3 {[%clk 0:02:49.4]} 9... Nxf3+ {[%clk
0:02:54.3]} 10. Bxf3 {[%clk 0:02:49.3]} 10... Bh3 {[%clk 0:02:52.7]} 11. Rd1
{[%clk 0:02:50.2]} 11... Nd7 {[%clk 0:02:34.1]} 12. Qxb7 {[%clk 0:02:41.5]}
12... Rb8 {[%clk 0:02:35.1]} 13. Qxa7 {[%clk 0:02:13.5]} 13... Ne5 {[%clk
0:02:35.3]} 14. Bd5 {[%clk 0:01:50.2]} 14... c6 {[%clk 0:02:33.1]} 15. Bg2
{[%clk 0:01:45.7]} 15... Bxg2 {[%clk 0:02:33.5]} 16. Kxg2 {[%clk 0:01:47.6]}
16... Nxc4 {[%clk 0:02:34.6]} 17. Rd3 {[%clk 0:00:59.2]} 17... Nxb2 {[%clk
0:01:07.2]} 18. Bxb2 {[%clk 0:00:59.3]} 18... Rxb2 {[%clk 0:01:09.1]} 19. Qa3
{[%clk 0:01:01.2]} 19... Qb8 {[%clk 0:01:07.9]} 20. Rad1 {[%clk 0:00:42.7]}
20... d5 {[%clk 0:01:08.6]} 21. e3 {[%clk 0:00:37.5]} 21... Qb4 {[%clk
0:01:03.7]} 22. Qxb4 {[%clk 0:00:35.2]} 22... Rxb4 {[%clk 0:01:05.6]} 23. Ne2
{[%clk 0:00:37.1]} 23... Ra8 {[%clk 0:01:05.9]} 24. a3 {[%clk 0:00:35.9]} 24...
Rb2 {[%clk 0:00:59.8]} 25. Nf4 {[%clk 0:00:35.5]} 25... Rc2 {[%clk 0:00:52]} 26.
Rb1 {[%clk 0:00:33.5]} 26... Bf8 {[%clk 0:00:52.6]} 27. Rdb3 {[%clk 0:00:21]}
27... Rxa3 {[%clk 0:00:49.7]} 28. Rb8 {[%clk 0:00:21.6]} 28... Rxe3 {[%clk
0:00:37.3]} 29. Rc8 {[%clk 0:00:19.2]} 29... Kg7 {[%clk 0:00:37]} 30. Rbb8
{[%clk 0:00:18.3]} 30... Bd6 {[%clk 0:00:34.8]} 31. Rg8+ {[%clk 0:00:16.4]}
31... Kh6 {[%clk 0:00:35.9]} 32. Rb7 {[%clk 0:00:13.2]} 32... Re7 {[%clk
0:00:26.1]} 33. Rxe7 {[%clk 0:00:12]} 33... Bxe7 {[%clk 0:00:28]} 34. h4 {[%clk
0:00:11.8]} 34... Bd6 {[%clk 0:00:21.6]} 35. Nh3 {[%clk 0:00:12.2]} 35... f6
{[%clk 0:00:16.8]} 36. Rd8 {[%clk 0:00:11.8]} 36... Bc5 {[%clk 0:00:15.9]} 37.
Rd7 {[%clk 0:00:13.2]} 37... g5 {[%clk 0:00:13.4]} 38. hxg5+ {[%clk 0:00:14.4]}
38... fxg5 {[%clk 0:00:15.3]} 39. g4 {[%clk 0:00:12.9]} 39... Kg6 {[%clk
0:00:15.4]} 40. Rc7 {[%clk 0:00:11.4]} 40... Bd4 {[%clk 0:00:16.3]} 41. Rd7
{[%clk 0:00:12.2]} 41... Be5 {[%clk 0:00:13.4]} 42. Re7 {[%clk 0:00:13.1]} 42...
Bf6 {[%clk 0:00:14.5]} 43. Rd7 {[%clk 0:00:13.3]} 43... d4 {[%clk 0:00:14.4]}
44. Kf1 {[%clk 0:00:14.6]} 44... c5 {[%clk 0:00:14.3]} 45. Rd6 {[%clk
0:00:13.3]} 45... Rc3 {[%clk 0:00:13.8]} 46. Kg2 {[%clk 0:00:12.2]} 46... Kf7
{[%clk 0:00:13.6]} 47. Rd7+ {[%clk 0:00:11.5]} 47... Ke6 {[%clk 0:00:14.8]} 48.
Rxh7 {[%clk 0:00:12.6]} 48... d3 {[%clk 0:00:16.3]} 49. Kf3 {[%clk 0:00:14]}
49... Rc1 {[%clk 0:00:13.8]} 50. Ke3 {[%clk 0:00:09.4]} 50... c4 {[%clk
0:00:15.1]} 51. Rh6 {[%clk 0:00:10.7]} 51... Re1+ {[%clk 0:00:15.9]} 52. Kd2
{[%clk 0:00:10.7]} 52... Re2+ {[%clk 0:00:16.7]} 53. Kd1 {[%clk 0:00:12.1]}
53... c3 {[%clk 0:00:14.4]} 54. Nxg5+ {[%clk 0:00:13.3]} 54... Kd5 {[%clk
0:00:11.7]} 55. Nf3 {[%clk 0:00:12.6]} 55... c2+ {[%clk 0:00:12.6]} 56. Kc1
{[%clk 0:00:13.8]} 56... Rxf2 {[%clk 0:00:13.1]} 57. Rh5+ {[%clk 0:00:12.2]}
57... Kc4 {[%clk 0:00:10.3]} 58. Nd2+ {[%clk 0:00:13.3]} 58... Rxd2 {[%clk
0:00:06.3]} 59. Kxd2 {[%clk 0:00:15.2]} 59... Bc3+ {[%clk 0:00:05.9]} 60. Kc1
{[%clk 0:00:13.9]} 60... Kb3 {[%clk 0:00:06.7]} 61. Rb5+ {[%clk 0:00:11.5]}
61... Bb4 {[%clk 0:00:08]} 62. Rxb4+ {[%clk 0:00:03.7]} 62... Kxb4 {[%clk
0:00:09.1]} 63. Kd2 {[%clk 0:00:05.6]} 63... Kb3 {[%clk 0:00:10.2]} 64. g5
{[%clk 0:00:07.1]} 0-1

[Event "*** Titled Tuesday Blitz"]
[Site "Chess.com"]
[Date "2020.02.04"]
[Round "7"]
[White "riconaipe"]
[Black "MasterKroket"]
[Result "1/2-1/2"]
[WhiteElo "2528"]
[BlackElo "2414"]
[TimeControl "180+2"]
[EndTime "10:38:07 PST"]
[Termination "Game drawn - insufficient material"]

1. e4 {[%clk 0:03:01.9]} 1... c5 {[%clk 0:03:00.6]} 2. Nf3 {[%clk 0:03:01.6]}
2... e6 {[%clk 0:03:01.7]} 3. b3 {[%clk 0:03:01.3]} 3... Nf6 {[%clk 0:02:59.8]}
4. Bd3 {[%clk 0:03:00]} 4... d6 {[%clk 0:02:59.3]} 5. Bb2 {[%clk 0:03:01]} 5...
e5 {[%clk 0:02:59.9]} 6. O-O {[%clk 0:03:01.6]} 6... Be7 {[%clk 0:02:59.3]} 7.
Re1 {[%clk 0:03:02.4]} 7... O-O {[%clk 0:03:00.2]} 8. c3 {[%clk 0:03:03.6]} 8...
Nh5 {[%clk 0:02:54.3]} 9. Bf1 {[%clk 0:03:03.9]} 9... Nf4 {[%clk 0:02:50.2]} 10.
d4 {[%clk 0:03:01.7]} 10... exd4 {[%clk 0:02:48.6]} 11. cxd4 {[%clk 0:03:03.6]}
11... Bf6 {[%clk 0:02:45.4]} 12. e5 {[%clk 0:03:00.1]} 12... dxe5 {[%clk
0:02:45.8]} 13. dxe5 {[%clk 0:02:59.4]} 13... Qxd1 {[%clk 0:02:46.1]} 14. Rxd1
{[%clk 0:03:00.6]} 14... Be7 {[%clk 0:02:47.5]} 15. Nc3 {[%clk 0:03:01.8]} 15...
Bg4 {[%clk 0:02:24.2]} 16. Bc1 {[%clk 0:02:53.7]} 16... Bxf3 {[%clk 0:02:20.2]}
17. gxf3 {[%clk 0:02:53.4]} 17... Ne6 {[%clk 0:02:21.3]} 18. f4 {[%clk
0:02:54.6]} 18... Nc6 {[%clk 0:02:18.3]} 19. Nd5 {[%clk 0:02:53.9]} 19... Bh4
{[%clk 0:02:11.8]} 20. Be3 {[%clk 0:02:51]} 20... Ned4 {[%clk 0:02:11.8]} 21.
Kg2 {[%clk 0:02:47.9]} 21... b6 {[%clk 0:02:05.9]} 22. Bd3 {[%clk 0:02:45.1]}
22... Rad8 {[%clk 0:01:53.2]} 23. Be4 {[%clk 0:02:44.6]} 23... Rfe8 {[%clk
0:01:40.7]} 24. Nc7 {[%clk 0:02:37.2]} 24... Re7 {[%clk 0:01:37]} 25. Bxc6
{[%clk 0:02:36.3]} 25... Nxc6 {[%clk 0:01:37.2]} 26. Rxd8+ {[%clk 0:02:30.3]}
26... Nxd8 {[%clk 0:01:39.1]} 27. Nb5 {[%clk 0:02:29.4]} 27... Rd7 {[%clk
0:01:37.4]} 28. a4 {[%clk 0:02:28.7]} 28... Be7 {[%clk 0:01:33.8]} 29. a5 {[%clk
0:02:28.6]} 29... f6 {[%clk 0:01:31.2]} 30. axb6 {[%clk 0:02:23]} 30... axb6
{[%clk 0:01:31]} 31. Ra8 {[%clk 0:02:21.8]} 31... fxe5 {[%clk 0:01:28.3]} 32.
fxe5 {[%clk 0:02:22.8]} 32... Kf7 {[%clk 0:01:29.6]} 33. f4 {[%clk 0:02:23.7]}
33... g6 {[%clk 0:01:30.2]} 34. Kf3 {[%clk 0:02:19.7]} 34... Rd3 {[%clk
0:01:27.7]} 35. Ra7 {[%clk 0:02:08.2]} 35... Rxb3 {[%clk 0:01:23.3]} 36. Nd6+
{[%clk 0:02:08.8]} 36... Ke6 {[%clk 0:01:24.7]} 37. Nc8 {[%clk 0:02:09.2]} 37...
Nc6 {[%clk 0:01:23.9]} 38. Rc7 {[%clk 0:02:06.9]} 38... Nd4+ {[%clk 0:01:24.9]}
39. Ke4 {[%clk 0:02:06.8]} 39... Nf5 {[%clk 0:01:22.7]} 40. Bd2 {[%clk
0:01:59.9]} 40... Bd8 {[%clk 0:01:09.7]} 41. Rxh7 {[%clk 0:01:56.2]} 41... c4
{[%clk 0:01:10.4]} 42. Rh8 {[%clk 0:01:42.3]} 42... Bc7 {[%clk 0:01:04.1]} 43.
Rh7 {[%clk 0:01:23.2]} 43... Bb8 {[%clk 0:00:56.9]} 44. Rb7 {[%clk 0:01:20]}
44... c3 {[%clk 0:00:58.2]} 45. Bc1 {[%clk 0:01:12.3]} 45... Rb1 {[%clk
0:00:52.7]} 46. Rxb6+ {[%clk 0:01:05.8]} 46... Rxb6 {[%clk 0:00:52.9]} 47. Nxb6
{[%clk 0:01:07.7]} 47... g5 {[%clk 0:00:44.9]} 48. fxg5 {[%clk 0:01:01.6]} 48...
Bxe5 {[%clk 0:00:44.9]} 49. h3 {[%clk 0:00:58.3]} 49... Nd6+ {[%clk 0:00:43.9]}
50. Kd3 {[%clk 0:00:53.6]} 50... Kf5 {[%clk 0:00:44.6]} 51. h4 {[%clk
0:00:40.2]} 51... Kg4 {[%clk 0:00:42]} 52. Nd7 {[%clk 0:00:33.9]} 52... Bg7
{[%clk 0:00:39.1]} 53. Ba3 {[%clk 0:00:23.7]} 53... Nf5 {[%clk 0:00:33.3]} 54.
Nf6+ {[%clk 0:00:18.1]} 54... Kxh4 {[%clk 0:00:33.8]} 55. Ne4 {[%clk 0:00:19.1]}
55... Kh5 {[%clk 0:00:25.6]} 56. Bc1 {[%clk 0:00:12.3]} 56... Kg6 {[%clk
0:00:25.8]} 57. Kc4 {[%clk 0:00:13.8]} 57... Nh4 {[%clk 0:00:23.6]} 58. Kd5
{[%clk 0:00:14.6]} 58... Nf3 {[%clk 0:00:24.4]} 59. Ke6 {[%clk 0:00:16]} 59...
c2 {[%clk 0:00:22.4]} 60. Kd5 {[%clk 0:00:13.4]} 60... Ne5 {[%clk 0:00:21]} 61.
Nc5 {[%clk 0:00:08.3]} 61... Kf5 {[%clk 0:00:18.3]} 62. Ne6 {[%clk 0:00:07.9]}
62... Nd3 {[%clk 0:00:12.8]} 63. Nxg7+ {[%clk 0:00:08.9]} 63... Kg6 {[%clk
0:00:13.9]} 64. Be3 {[%clk 0:00:06.6]} 64... c1=Q {[%clk 0:00:14.8]} 65. Bxc1
{[%clk 0:00:07.2]} 65... Nxc1 {[%clk 0:00:16]} 66. Ne6 {[%clk 0:00:09.1]} 66...
Ne2 {[%clk 0:00:15.2]} 67. Ke4 {[%clk 0:00:09.7]} 67... Ng3+ {[%clk 0:00:15.5]}
68. Kf4 {[%clk 0:00:10.4]} 68... Nh5+ {[%clk 0:00:13.7]} 69. Kg4 {[%clk
0:00:11]} 69... Ng7 {[%clk 0:00:14.8]} 70. Nf4+ {[%clk 0:00:11.9]} 70... Kf7
{[%clk 0:00:15.4]} 71. Ng2 {[%clk 0:00:09.5]} 71... Kg6 {[%clk 0:00:15.7]} 72.
Nh4+ {[%clk 0:00:10.3]} 72... Kf7 {[%clk 0:00:17.1]} 73. Nf3 {[%clk 0:00:10.3]}
73... Ne6 {[%clk 0:00:14.2]} 74. Ne5+ {[%clk 0:00:09.1]} 74... Kg7 {[%clk
0:00:15.1]} 75. g6 {[%clk 0:00:10.6]} 75... Nf8 {[%clk 0:00:16.3]} 76. Kf5
{[%clk 0:00:10.1]} 76... Nxg6 {[%clk 0:00:18.2]} 1/2-1/2